fUSD/lending_fUSD_20240913
["ID","MTS","AMOUNT","RATE_DAILY","PERIOD"]
[337936914,1726210250194,-1644.65,0.0001377,2]
[337936915,1726210250203,-267.33111145,0.0001377,2]
[337936916,1726210250212,-213.89802016,0.0001377,2]
[337936917,1726210250221,-500.0,0.0001377,2]
[337936918,1726210250230,-936.11,0.0001377,2]
[337936919,1726210250239,-500.0,0.0001377,2]
[337936920,1726210250248,-500.0,0.0001377,2]
[337936921,1726210250258,-500.0,0.0001377,2]
[337936922,1726210250267,-1410.91,0.0001377,2]
[337936923,1726210250276,-596.6,0.0001377,2]
[337936924,1726210250285,-500.0,0.0001377,2]
[337936925,1726210250294,-500.0,0.0001377,2]
[337936926,1726210250303,-500.0,0.0001377,2]
[337936927,1726210250312,-500.0,0.0001377,2]
[337936928,1726210250322,-500.0,0.0001377,2]
[337936929,1726210250331,-500.0,0.0001377,2]
[337936930,1726210250342,-500.0,0.0001377,2]
[337936931,1726210250352,-500.0,0.0001377,2]
[337936932,1726210250362,-997.65,0.0001377,2]
[337936933,1726210250371,-500.0,0.0001377,2]
[337936934,1726210250381,-500.0,0.0001377,2]
[337936935,1726210250390,-734.84,0.0001377,2]
[337936936,1726210250400,-960.8,0.0001377,2]
[337936937,1726210250409,-500.0,0.0001377,2]
[337936938,1726210250422,-500.0,0.0001377,2]
[337936939,1726210250431,-500.0,0.0001377,2]
[337936940,1726210250441,-1376.85,0.00013771,2]
[337936941,1726210250450,-724.24,0.00013771,2]
[337936942,1726210250459,-880.44,0.00013771,2]
[337936943,1726210250468,-1721.18,0.00013771,2]
[337936944,1726210250477,-500.0,0.00013771,2]
[337936945,1726210250488,-547.76,0.00013771,2]
[337936946,1726210250499,-1645.89,0.00013771,2]
[337936947,1726210250509,-500.0,0.00013771,2]
[337936948,1726210250519,-1337.47,0.00013771,2]
[337936949,1726210250528,-1862.11,0.00013771,2]
[337936950,1726210250538,-500.0,0.00013771,2]
[337936951,1726210250547,-1841.96,0.00013771,2]
[337936952,1726210250557,-1895.48,0.00013771,2]
[337936953,1726210250567,-500.0,0.00013771,2]
[337936954,1726210250577,-910.45,0.00013771,2]
[337936955,1726210250586,-500.0,0.00013771,2]
[337936956,1726210250595,-500.0,0.00013771,2]
[337936957,1726210250605,-1398.42,0.00013771,2]
[337936958,1726210250615,-543.42,0.00013771,2]
[337936959,1726210250624,-1068.71,0.00013771,2]
[337936960,1726210250634,-1012.56,0.00013771,2]
[337936961,1726210250643,-2162.4,0.00013771,2]
[337936962,1726210250653,-500.0,0.00013771,2]
[337936963,1726210250663,-1453.0,0.00013771,2]
[337936964,1726210250673,-759.8,0.00013771,2]
[337936965,1726210250683,-1511.79,0.00013771,2]
[337936966,1726210250692,-500.0,0.00013771,2]
[337936967,1726210250701,-500.0,0.00013771,2]
[337936968,1726210250711,-1372.58,0.00013771,2]
[337936969,1726210250720,-2253.41,0.00013771,2]
[337936970,1726210250730,-1650.95,0.00013771,2]
[337936971,1726210250740,-967.77,0.00013771,2]
[337936972,1726210250750,-500.0,0.00013771,2]
[337936973,1726210250760,-1177.63,0.00013771,2]
[337936974,1726210250769,-615.13,0.00013771,2]
[337936975,1726210250779,-1989.31,0.00013771,2]
[337936976,1726210250788,-1028.91,0.00013771,2]
[337936977,1726210250797,-1740.08,0.00013771,2]
[337936978,1726210250807,-863.13,0.00013771,2]
[337936979,1726210250816,-1948.81,0.00013771,2]
[337936980,1726210250825,-1226.1,0.00013771,2]
[337936981,1726210250835,-998.62,0.00013771,2]
[337936982,1726210250845,-1094.97,0.00013771,2]
[337936983,1726210250854,-544.73,0.00013771,2]
[337936984,1726210250865,-500.0,0.00013771,2]
[337936985,1726210250875,-993.64,0.00013771,2]
[337936986,1726210250885,-881.36,0.00013771,2]
[337936987,1726210250895,-1712.74,0.00013771,2]
[337936988,1726210250905,-795.65,0.00013771,2]
[337936989,1726210250914,-748.28,0.00013771,2]
[337936990,1726210250923,-500.0,0.00013771,2]
[337936991,1726210250933,-2044.23,0.00013771,2]
[337936992,1726210250942,-663.12,0.00013771,2]
[337936993,1726210250951,-500.0,0.00013771,2]
[337936994,1726210250960,-1782.19,0.00013771,2]
[337936995,1726210250970,-4907.89,0.00013771,2]
[337936996,1726210250979,-729.14,0.00013771,2]
[337936997,1726210250988,-736.59,0.00013771,2]
[337936998,1726210251000,-2453.01,0.00013771,2]
[337936999,1726210251009,-2282.41,0.00013771,2]
[337937000,1726210251018,-2759.94,0.00013771,2]
[337937001,1726210251027,-1975.26,0.00013771,2]
[337937002,1726210251036,-1604.79,0.00013771,2]
[337937003,1726210251045,-500.0,0.00013771,2]
[337937004,1726210251054,-3130.36,0.00013771,2]
[337937005,1726210251064,-500.0,0.00013771,2]
[337937006,1726210251073,-500.0,0.00013771,2]
[337937007,1726210251082,-510.03,0.00013771,2]
[337937008,1726210251092,-1512.28,0.00013771,2]
[337937009,1726210251103,-699.63,0.00013771,2]
[337937010,1726210251114,-1751.87,0.00013771,2]
[337937011,1726210251123,-957.91,0.00013771,2]
[337937012,1726210251132,-3257.95,0.00013771,2]
[337937013,1726210251142,-3217.86,0.00013771,2]
[337937014,1726210251151,-500.0,0.00013771,2]
[337937015,1726210251162,-2735.9,0.00013771,2]
[337937016,1726210251172,-693.65,0.00013771,2]
[337937017,1726210251181,-1440.25,0.00013771,2]
[337937018,1726210251193,-500.0,0.00013771,2]
[337937019,1726210251203,-500.0,0.00013771,2]
[337937020,1726210251213,-4839.81,0.00013771,2]
[337937021,1726210251223,-4971.08,0.00013771,2]
[337937022,1726210251232,-2576.61,0.00013771,2]
[337937023,1726210251243,-839.24,0.00013771,2]
[337937024,1726210251253,-1921.46,0.00013771,2]
[337937025,1726210251262,-500.0,0.00013771,2]
[337937026,1726210251272,-733.53,0.00013771,2]
[337937027,1726210251282,-151.0,0.00013771,2]
[337937028,1726210251292,-2281.46,0.00013771,2]
[337937029,1726210251301,-2052.83,0.00013771,2]
[337937030,1726210251311,-1631.43,0.00013771,2]
[337937031,1726210251321,-1705.5,0.00013771,2]
[337937032,1726210251330,-500.0,0.00013771,2]
[337937033,1726210251340,-500.0,0.00013771,2]
[337937034,1726210251350,-3678.43,0.00013771,2]
[337937035,1726210251360,-1759.02,0.00013771,2]
[337937036,1726210251370,-1651.73,0.00013771,2]
[337937037,1726210251379,-1556.19,0.00013771,2]
[337937038,1726210251389,-2571.0,0.00013771,2]
[337937039,1726210251399,-1770.67,0.00013771,2]
[337937040,1726210251410,-1895.57,0.00013771,2]
[337937041,1726210251424,-500.0,0.00013771,2]
[337937042,1726210251434,-2418.89,0.00013771,2]
[337937043,1726210251444,-4742.76,0.00013771,2]
[337937044,1726210251455,-2281.98,0.00013771,2]
[337937045,1726210251464,-923.0,0.00013772,2]
[337937046,1726210251474,-2066.33,0.00013772,2]
[337937047,1726210251484,-500.0,0.00013772,2]
[337937048,1726210251495,-662.92,0.00013772,2]
[337937049,1726210251506,-1696.35,0.00013772,2]
[337937050,1726210251516,-3291.14,0.00013772,2]
[337937051,1726210251526,-646.73,0.00013772,2]
[337937052,1726210251536,-2947.87,0.00013772,2]
[337937053,1726210251546,-1958.91,0.00013772,2]
[337937054,1726210251556,-40201.89,0.00013772,2]
[337937055,1726210251566,-1742.06,0.00013772,2]
[337937056,1726210251577,-1516.56,0.00013772,2]
[337937057,1726210251587,-1669.15,0.00013772,2]
[337937058,1726210251596,-1733.7,0.00013772,2]
[337937059,1726210251606,-1708.6,0.00013772,2]
[337937060,1726210251617,-1028.33,0.00013772,2]
[337937061,1726210251627,-1725.47,0.00013772,2]
[337937062,1726210251637,-3043.32,0.00013772,2]
[337937063,1726210251648,-1431.38,0.00013772,2]
[337937064,1726210251659,-2247.09,0.00013772,2]
[337937065,1726210251669,-4075.67,0.00013772,2]
[337937066,1726210251679,-744.35,0.00013772,2]
[337937067,1726210251689,-595.67,0.00013772,2]
[337937068,1726210251700,-7041.33,0.00013772,2]
[337937069,1726210251710,-27141.69,0.00013772,2]
[337937070,1726210251720,-3829.82,0.00013772,2]
[337937071,1726210251730,-8755.15,0.00013772,2]
[337937072,1726210251740,-1910.92,0.00013772,2]
[337937073,1726210251750,-2566.71,0.00013772,2]
[337937074,1726210251759,-762.72,0.00013772,2]
[337937075,1726210251769,-201.34087686,0.00013773,2]
[337937076,1726210251779,-500.46289973,0.00013773,2]
[337937077,1726210251789,-500.0,0.00013773,2]
[337937078,1726210251799,-150.0,0.00013773,2]
[337937079,1726210251808,-500.0,0.00013773,2]
[337937080,1726210251818,-890.6,0.00013773,2]
[337937081,1726210251828,-556.69,0.00013773,2]
[337937082,1726210251838,-500.0,0.00013773,2]
[337937083,1726210251848,-500.0,0.00013773,2]
[337937084,1726210251858,-599.04,0.00013773,2]
[337937085,1726210251868,-500.0,0.00013773,2]
[337937086,1726210251878,-1296.24,0.00013773,2]
[337937087,1726210251888,-500.0,0.00013773,2]
[337937088,1726210251898,-500.0,0.00013773,2]
[337937089,1726210251982,-500.0,0.00013773,2]
[337937090,1726210251999,-500.0,0.00013773,2]
[337937091,1726210252021,-500.0,0.00013773,2]
[337937092,1726210252031,-1438.2,0.00013773,2]
[337937093,1726210252042,-500.0,0.00013773,2]
[337937094,1726210252051,-500.0,0.00013773,2]
[337937095,1726210252061,-1224.7,0.00013773,2]
[337937096,1726210252071,-500.0,0.00013773,2]
[337937097,1726210252081,-1037.91,0.00013773,2]
[337937098,1726210252092,-500.0,0.00013773,2]
[337937099,1726210252103,-500.0,0.00013773,2]
[337937100,1726210252112,-500.0,0.00013773,2]
[337937101,1726210252121,-500.0,0.00013773,2]
[337937102,1726210252131,-500.0,0.00013773,2]
[337937103,1726210252140,-500.0,0.00013773,2]
[337937104,1726210252149,-926.48,0.00013773,2]
[337937105,1726210252159,-612.68298534,0.00013773,2]
[337937106,1726210252168,-500.0,0.00013773,2]
[337937107,1726210252178,-956.52,0.00013773,2]
[337937108,1726210252188,-569.29,0.00013773,2]
[337937109,1726210252199,-695.38,0.00013773,2]
[337937110,1726210252209,-849.05,0.00013773,2]
[337937111,1726210252222,-960.69,0.00013773,2]
[337937112,1726210252232,-500.0,0.00013773,2]
[337937113,1726210252243,-500.0,0.00013773,2]
[337937114,1726210252253,-2228.05,0.00013773,2]
[337937115,1726210252263,-852.38,0.00013773,2]
[337937116,1726210252273,-3382.98,0.00013773,2]
[337937117,1726210252284,-1913.65,0.00013773,2]
[337937118,1726210252293,-1255.86,0.00013773,2]
[337937119,1726210252303,-1161.32,0.00013773,2]
[337937120,1726210252312,-1697.12,0.00013773,2]
[337937121,1726210252322,-1652.42,0.00013773,2]
[337937122,1726210252332,-1654.67,0.00013773,2]
[337937123,1726210252342,-1645.26,0.00013773,2]
[337937124,1726210252352,-1222.06,0.00013773,2]
[337937125,1726210252362,-1197.59,0.00013773,2]
[337937126,1726210252372,-751.98,0.00013773,2]
[337937127,1726210252382,-1332.16,0.00013773,2]
[337937128,1726210252392,-500.0,0.00013773,2]
[337937129,1726210252402,-500.0,0.00013773,2]
[337937130,1726210252414,-3139.26,0.00013773,2]
[337937131,1726210252426,-539.22,0.00013773,2]
[337937132,1726210252436,-1200.96,0.00013773,2]
[337937133,1726210252446,-151.0,0.00013773,2]
[337937134,1726210252459,-2280.8,0.00013773,2]
[337937135,1726210252469,-500.0,0.00013773,2]
[337937136,1726210252479,-500.0,0.00013773,2]
[337937137,1726210252489,-1028.49,0.00013773,2]
[337937138,1726210252499,-1816.35,0.00013773,2]
[337937139,1726210252509,-357.594923,0.00013773,2]
[337937140,1726210252518,-2740.22,0.00013773,2]
[337937141,1726210252528,-357.594923,0.00013773,2]
[337937142,1726210252538,-1710.12,0.00013773,2]
[337937143,1726210252548,-1331.66,0.00013773,2]
[337937144,1726210252558,-209.40795868,0.00013773,2]
[337937145,1726210252567,-500.0,0.00013773,2]
[337937146,1726210252579,-685.49,0.00013773,2]
[337937147,1726210252588,-644.85,0.00013773,2]
[337937148,1726210252598,-1523.78,0.00013773,2]
[337937149,1726210252608,-500.0,0.00013773,2]
[337937150,1726210252618,-891.22,0.00013773,2]
[337937151,1726210252627,-500.0,0.00013773,2]
[337937152,1726210252637,-779.04,0.00013773,2]
[337937153,1726210252647,-190.82240195,0.00013773,2]
[337937154,1726210252656,-751.18,0.00013773,2]
[337937155,1726210252666,-500.0,0.00013773,2]
[337937156,1726210252676,-2429.77,0.00013773,2]
[337937157,1726210252685,-500.0,0.00013773,2]
[337937158,1726210252696,-1454.87,0.00013773,2]
[337937159,1726210252705,-684.01,0.00013773,2]
[337937160,1726210252715,-562.56,0.00013773,2]
[337937161,1726210252725,-500.0,0.00013773,2]
[337937162,1726210252735,-2187.28,0.00013773,2]
[337937163,1726210252745,-500.0,0.00013773,2]
[337937164,1726210252756,-1373.53,0.00013773,2]
[337937165,1726210252766,-500.0,0.00013773,2]
[337937166,1726210252776,-500.0,0.00013773,2]
[337937167,1726210252786,-657.39,0.00013773,2]
[337937168,1726210252795,-579.86,0.00013773,2]
[337937169,1726210252805,-1321.01,0.00013773,2]
[337937170,1726210252815,-500.0,0.00013773,2]
[337937171,1726210252824,-516.09,0.00013773,2]
[337937172,1726210252833,-500.0,0.00013773,2]
[337937173,1726210252842,-500.0,0.00013773,2]
[337937174,1726210252852,-791.86,0.00013773,2]
[337937175,1726210252861,-634.09,0.00013773,2]
[337937176,1726210252871,-1453.89,0.00013773,2]
[337937177,1726210252880,-1772.65,0.00013773,2]
[337937178,1726210252890,-671.19,0.00013773,2]
[337937179,1726210252899,-500.0,0.00013773,2]
[337937180,1726210252909,-614.95,0.00013773,2]
[337937181,1726210252919,-557.22,0.00013773,2]
[337937182,1726210252928,-1682.12,0.00013773,2]
[337937183,1726210252938,-671.56,0.00013773,2]
[337937184,1726210252948,-1031.13,0.00013773,2]
[337937185,1726210252958,-500.0,0.00013773,2]
[337937186,1726210252967,-957.07,0.00013773,2]
[337937187,1726210252976,-500.0,0.00013773,2]
[337937188,1726210252986,-258.25343795,0.00013773,2]
[337937189,1726210252995,-3171.09,0.00013773,2]
[337937190,1726210253005,-954.63,0.00013773,2]
[337937191,1726210253015,-538.41,0.00013773,2]
[337937192,1726210253024,-500.0,0.00013773,2]
[337937193,1726210253034,-2191.26,0.00013773,2]
[337937194,1726210253044,-1230.93,0.00013773,2]
[337937195,1726210253053,-500.0,0.00013773,2]
[337937196,1726210253063,-500.0,0.00013773,2]
[337937197,1726210253072,-1222.55,0.00013773,2]
[337937198,1726210253082,-500.0,0.00013773,2]
[337937199,1726210253091,-1738.87,0.00013773,2]
[337937200,1726210253101,-1816.7,0.00013773,2]
[337937201,1726210253110,-585.45,0.00013773,2]
[337937202,1726210253120,-500.0,0.00013773,2]
[337937203,1726210253131,-500.0,0.00013773,2]
[337937204,1726210253140,-1552.23,0.00013773,2]
[337937205,1726210253150,-657.88,0.00013773,2]
[337937206,1726210253159,-1737.39,0.00013773,2]
[337937207,1726210253169,-500.0,0.00013773,2]
[337937208,1726210253179,-2154.77,0.00013773,2]
[337937209,1726210253189,-1267.08,0.00013774,2]
[337937210,1726210253199,-650.09,0.00013774,2]
[337937211,1726210253208,-500.0,0.00013774,2]
[337937212,1726210253219,-2220.15,0.00013774,2]
[337937213,1726210253229,-2541.68,0.00013774,2]
[337937214,1726210253240,-3221.15,0.00013774,2]
[337937215,1726210253251,-2126.3,0.00013774,2]
[337937216,1726210253261,-2645.59,0.00013774,2]
[337937217,1726210253271,-814.66,0.00013774,2]
[337937218,1726210253282,-2421.89,0.00013774,2]
[337937219,1726210253292,-500.0,0.00013774,2]
[337937220,1726210253302,-917.81,0.00013774,2]
[337937221,1726210253312,-1603.44,0.00013774,2]
[337937222,1726210253322,-150.0,0.00013774,2]
[337937223,1726210253331,-3115.24,0.00013774,2]
[337937224,1726210253342,-151.0,0.00013774,2]
[337937225,1726210253351,-150.0,0.00013779,2]
[337937226,1726210253361,-150.0,0.00013779,2]
[337937227,1726210253371,-150.0,0.0001378,2]
[337937228,1726210253381,-150.0,0.00013783,2]
[337937229,1726210253392,-150.0,0.00013784,2]
[337937230,1726210253402,-150.0,0.00013786,2]
[337937231,1726210253414,-150.0,0.00013789,2]
[337937232,1726210253425,-150.0,0.00013789,2]
[337937233,1726210253435,-7695.25873678,0.0001379,2]
[337937234,1726210253444,-150.0,0.00013796,2]
[337937235,1726210253454,-150.0,0.00013801,2]
[337937236,1726210253465,-150.0,0.00013803,2]
[337937237,1726210253475,-150.0,0.00013803,2]
[337937238,1726210253485,-150.0,0.00013804,2]
[337937239,1726210253495,-150.0,0.00013806,2]
[337937240,1726210253506,-150.0,0.0001381,2]
[337937241,1726210253515,-150.0,0.0001381,2]
[337937242,1726210253525,-150.0,0.0001381,2]
[337937243,1726210253536,-150.0,0.00013822,2]
[337937244,1726210253545,-150.0,0.00013827,2]
[337937245,1726210253555,-150.0,0.00013829,2]
[337937246,1726210253818,-237.03711621,0.00013829,2]
[337937247,1726210253837,-150.0,0.00013831,2]
[337937248,1726210253847,-150.0,0.00013833,2]
[337937249,1726210253857,-150.0,0.00013833,2]
[337937250,1726210253867,-1500.0,0.00013836,2]
[337937251,1726210253876,-150.0,0.00013839,2]
[337937252,1726210253885,-150.0,0.00013841,2]
[337937253,1726210253894,-150.0,0.00013844,2]
[337937254,1726210253903,-255.0,0.00013848,2]
[337937255,1726210253913,-150.0,0.0001385,2]
[337937256,1726210253922,-150.0,0.00013862,2]
[337937257,1726210253931,-150.0,0.00013862,2]
[337937258,1726210253940,-150.0,0.00013863,2]
[337937259,1726210253951,-150.0,0.00013864,2]
[337937260,1726210253961,-150.0,0.00013866,2]
[337937261,1726210253970,-150.0,0.0001387,2]
[337937262,1726210253980,-150.0,0.00013876,2]
[337937263,1726210253990,-150.0,0.00013877,2]
[337937264,1726210254000,-150.0,0.00013877,2]
[337937265,1726210254009,-150.0,0.00013881,2]
[337937266,1726210254019,-150.0,0.00013882,2]
[337937267,1726210254028,-150.0,0.00013883,2]
[337937268,1726210254038,-150.0,0.00013885,2]
[337937269,1726210254049,-150.0,0.00013887,2]
[337937270,1726210254059,-150.0,0.00013894,2]
[337937271,1726210254068,-150.0,0.00013902,2]
[337937272,1726210254078,-150.0,0.00013903,2]
[337937273,1726210254088,-150.0,0.00013908,2]
[337937274,1726210254098,-150.0,0.00013913,2]
[337937275,1726210254107,-150.0,0.00013917,2]
[337937276,1726210254117,-150.0,0.00013917,2]
[337937277,1726210254127,-150.0,0.00013917,2]
[337937278,1726210254136,-150.0,0.00013917,2]
[337937279,1726210254146,-150.0,0.00013918,2]
[337937280,1726210254155,-150.0,0.00013921,2]
[337937281,1726210254165,-1592.1536738,0.00013921,2]
[337937282,1726210254175,-150.0,0.00013923,2]
[337937283,1726210254184,-150.0,0.00013924,2]
[337937284,1726210254194,-150.0,0.00013925,2]
[337937285,1726210254203,-150.0,0.00013932,2]
[337937286,1726210254213,-150.0,0.00013935,2]
[337937287,1726210254223,-150.0,0.00013936,2]
[337937288,1726210254232,-150.0,0.00013938,2]
[337937289,1726210254242,-150.0,0.00013938,2]
[337937290,1726210254251,-150.0,0.0001394,2]
[337937291,1726210254260,-357.594923,0.00013945,2]
[337937292,1726210254269,-357.594923,0.00013945,2]
[337937293,1726210254281,-20607.21550417,0.00013945,2]
[337937294,1726210254292,-680.57,0.00013947,2]
[337937295,1726210254302,-500.0,0.00013947,2]
[337937296,1726210254312,-35928.76,0.00013947,2]
[337937297,1726210254323,-2132.67,0.00013947,2]
[337937298,1726210254332,-804.78,0.00013947,2]
[337937299,1726210254342,-5059.77,0.00013947,2]
[337937300,1726210254351,-1247.6,0.00013947,2]
[337937301,1726210254360,-637.81,0.00013947,2]
[337937302,1726210254370,-1040.49,0.00013947,2]
[337937303,1726210254379,-1436.71,0.00013947,2]
[337937304,1726210254390,-500.0,0.00013947,2]
[337937305,1726210254401,-1874.87,0.00013947,2]
[337937306,1726210254411,-3033.76,0.00013947,2]
[337937307,1726210254423,-978.85,0.00013947,2]
[337937308,1726210254433,-1459.79,0.00013947,2]
[337937309,1726210254442,-1787.21,0.00013947,2]
[337937310,1726210254452,-2126.29,0.00013947,2]
[337937311,1726210254462,-2770.49,0.00013947,2]
[337937312,1726210254472,-8023.77,0.00013947,2]
[337937313,1726210254481,-1691.04,0.00013947,2]
[337937314,1726210254491,-2782.85,0.00013947,2]
[337937315,1726210254503,-2344.85,0.00013947,2]
[337937316,1726210254513,-3034.42,0.00013947,2]
[337937317,1726210254523,-2091.4,0.00013947,2]
[337937318,1726210254532,-528.93,0.00013947,2]
[337937319,1726210254542,-1215.6,0.00013947,2]
[337937320,1726210254551,-1547.58,0.00013947,2]
[337937321,1726210254560,-4867.36,0.00013947,2]
[337937322,1726210254569,-5690.42,0.00013947,2]
[337937323,1726210254579,-771.97,0.00013947,2]
[337937324,1726210254588,-2160.65,0.00013947,2]
[337937325,1726210254598,-2032.81,0.00013947,2]
[337937326,1726210254608,-7869.74,0.00013947,2]
[337937327,1726210254618,-29975.64,0.00013947,2]
[337937328,1726210254630,-1347.86,0.00013947,2]
[337937329,1726210254641,-1834.03,0.00013947,2]
[337937330,1726210254651,-7109.28,0.00013947,2]
[337937331,1726210254660,-1788.3,0.00013947,2]
[337937332,1726210254671,-1806.63,0.00013947,2]
[337937333,1726210254680,-1542.67,0.00013947,2]
[337937334,1726210254689,-6264.05,0.00013947,2]
[337937335,1726210254698,-1042.36,0.00013947,2]
[337937336,1726210254708,-1099.93,0.00013947,2]
[337937337,1726210254717,-2655.07,0.00013947,2]
[337937338,1726210254726,-4708.25,0.00013947,2]
[337937339,1726210254735,-2372.4,0.00013947,2]
[337937340,1726210254746,-783.77,0.00013947,2]
[337937341,1726210254757,-6725.33,0.00013947,2]
[337937342,1726210254767,-5623.03,0.00013947,2]
[337937343,1726210254776,-586.52,0.00013947,2]
[337937344,1726210254786,-2909.95,0.00013947,2]
[337937345,1726210254795,-906.93,0.00013947,2]
[337937346,1726210254805,-526.39,0.00013947,2]
[337937347,1726210254814,-500.0,0.00013947,2]
[337937348,1726210254823,-500.0,0.00013947,2]
[337937349,1726210254833,-4737.4,0.00013947,2]
[337937350,1726210254842,-506.41,0.00013947,2]
[337937351,1726210254851,-849.22,0.00013947,2]
[337937352,1726210254861,-150.0,0.00013948,2]
[337937353,1726210254871,-150.0,0.00013949,2]
[337937354,1726210254880,-150.0,0.0001395,2]
[337937355,1726210254890,-150.0,0.0001395,2]
[337937356,1726210254899,-150.0,0.00013952,2]
[337937357,1726210254909,-150.0,0.00013952,2]
[337937358,1726210254918,-1500.0,0.00013954,2]
[337937359,1726210254928,-150.0,0.00013954,2]
[337937360,1726210254937,-1500.0,0.00013955,2]
[337937361,1726210254946,-1298.72072069,0.00013956,2]
[337937362,1726210254955,-150.0,0.00013959,2]
[337937363,1726210254964,-150.0,0.00013959,2]
[337937364,1726210254974,-150.0,0.0001396,2]
[337937365,1726210254983,-150.0,0.00013961,2]
[337937366,1726210254992,-164.82475148,0.00013963,2]
[337937367,1726210255002,-150.0,0.00013966,2]
[337937368,1726210255011,-150.0,0.00013969,2]
[337937369,1726210255021,-150.0,0.0001397,2]
[337937370,1726210255030,-150.0,0.0001397,2]
[337937371,1726210255039,-150.0,0.00013972,2]
[337937372,1726210255049,-150.0,0.00013973,2]
[337937373,1726210255058,-150.0,0.00013973,2]
[337937374,1726210255067,-420.0,0.00013976,2]
[337937375,1726210255076,-150.0,0.00013981,2]
[337937376,1726210255085,-150.0,0.00013983,2]
[337937377,1726210255094,-150.0,0.00013983,2]
[337937378,1726210255104,-1500.0,0.00013988,2]
[337937379,1726210255114,-150.0,0.00013989,2]
[337937380,1726210255123,-150.0,0.00013989,2]
[337937381,1726210255132,-150.0,0.0001399,2]
[337937382,1726210255141,-150.0,0.00013991,2]
[337937383,1726210255151,-150.0,0.00013993,2]
[337937384,1726210255159,-150.0,0.00013996,2]
[337937385,1726210255169,-150.0,0.00014,2]
[337937386,1726210255178,-150.0,0.00014,2]
[337937387,1726210255187,-1000.0,0.00014,2]
[337937388,1726210255196,-150.0,0.00014005,2]
[337937389,1726210255206,-150.0,0.00014009,2]
[337937390,1726210255215,-150.0,0.0001401,2]
[337937391,1726210255224,-158.10949927,0.00014012,2]
[337937392,1726210255233,-150.0,0.00014016,2]
[337937393,1726210255243,-150.0,0.00014017,2]
[337937394,1726210255253,-150.0,0.00014018,2]
[337937395,1726210255266,-150.0,0.00014021,2]
[337937396,1726210255275,-150.0,0.00014022,2]
[337937397,1726210255285,-150.0,0.00014024,2]
[337937398,1726210255295,-150.0,0.00014025,2]
[337937399,1726210255304,-150.0,0.0001403,2]
[337937400,1726210255314,-150.0,0.00014038,2]
[337937401,1726210255323,-150.0,0.00014042,2]
[337937402,1726210255333,-500.0,0.00014044,2]
[337937403,1726210255343,-500.0,0.00014044,2]
[337937404,1726210255353,-1644.65,0.00014044,2]
[337937405,1726210255362,-500.0,0.00014044,2]
[337937406,1726210255371,-936.11,0.00014044,2]
[337937407,1726210255380,-500.0,0.00014044,2]
[337937408,1726210255390,-400.86254245,0.00014044,2]
[337937409,1726210255399,-500.0,0.00014044,2]
[337937410,1726210255409,-1410.91,0.00014044,2]
[337937411,1726210255428,-596.6,0.00014044,2]
[337937412,1726210255447,-500.0,0.00014044,2]
[337937413,1726210255456,-500.0,0.00014044,2]